Cogmind - Beta 13 @@@ ROGUE MODE // 2024.04.15 @ 21:24:44 Player: Thaleia Result: Self-destructed Performance ------------- Evolutions (1) 500 Regions Visited (2) 400 Robots Destroyed (15) 75 Value Destroyed (404) 404 Prototype IDs (0) 0 Alien Tech Used (0) 0 Bonus (0) 0 TOTAL SCORE: 1379 Bonus ------- None Cogmind --------- Core Integrity 330/400 Matter 234/300 Energy 100/100 System Corruption 0% Temperature Cool (0) Movement Walking (120) Location -9/Materials Parts ------- > --- POWER (1) -------- (None) > --- PROPULSION (3) --- Aluminum Leg > --- UTILITY (3) ------ Small Storage Unit > --- WEAPON (2) ------- Assault Rifle Assault Rifle > --- INVENTORY (8) ---- Light Ion Engine Aluminum Leg Aluminum Leg Visual Processing Unit Improved Targeting Computer ECM Suite Hardened Medium Armor Plating Assault Rifle Peak State ------------ > --- POWER ------------ Ion Engine > --- PROPULSION ------- Aluminum Leg Aluminum Leg Aluminum Leg > --- UTILITY ---------- Small Storage Unit Compact Matter Pod Hardened Medium Armor Plating > --- WEAPON ----------- Assault Rifle Assault Rifle > --- INVENTORY -------- Light Ion Engine Aluminum Leg Aluminum Leg Visual Processing Unit Improved Targeting Computer ECM Suite Hardened Medium Armor Plating Assault Rifle [Rating: 14] Favorites ----------- Power Ion Engine Engine Ion Engine Propulsion Aluminum Leg Leg Aluminum Leg Utility Small Storage Unit Storage Small Storage Unit Protection Weapon Shielding Weapon Assault Rifle Ballistic Gun Assault Rifle Build | -11 -10 -9 ------- Run | Yrd Mat Mat Slots Evolved 2 | . . 2 Power . | . . . Propulsion 1 | . . 1 Utility 1 | . . 1 Weapon . | . . . Parts Attached 22 | 6 13 3 Power 3 | 1 2 . Engine 3 | 1 2 . Core . | . . . Reactor . | . . . Propulsion 8 | 2 5 1 Treads . | . . . Leg 8 | 2 5 1 Wheel . | . . . Hover . | . . . Flight . | . . . Utility 5 | 1 2 2 Device . | . . . Storage 3 | 1 1 1 Processor . | . . . Hackware . | . . . Protection 2 | . 1 1 Artifact . | . . . Weapon 6 | 2 4 . Energy Gun . | . . . Energy Cannon . | . . . Ballistic Gun 6 | 2 4 . Ballistic Cannon . | . . . Launcher . | . . . Special Weapon . | . . . Impact Weapon . | . . . Slashing Weapon . | . . . Piercing Weapon . | . . . Special Melee Weapon . | . . . Unidentified Prototypes . | . . . Parts Lost 4 | . 2 2 Power 2 | . 1 1 Propulsion . | . . . Utility 1 | . . 1 Weapon 1 | . 1 . Highest Loss Streak 2 | . 1 2 To Critical Strikes . | . . . Average Slot Usage (%) 83 | . 82 92 Engine 13 | . 13 10 Leg 28 | . 28 31 Storage 15 | . 15 19 Protection 3 | . 3 10 Ballistic Gun 21 | . 21 22 Naked Turns . | . . . Heaviest Build 51 | 11 51 23 Greatest Support 30 | 20 20 30 Greatest Overweight (x) 2 | . 2 . Average Overweight (x) . | . . . Largest Inventory Capacity 20 | 8 20 8 Average Capacity 8 | 7 9 8 Most Carried 8 | 3 8 8 Average Carried 6 | 1 7 7 Final Capacity 8 | 8 8 8 Final Carried 8 | 3 8 8 Class Distribution -------------------- 94% | Mutant 5% | Scavenger-Mutant Dominant Class ---------------- Mutant | -10/Materials Scavenger-Mutant | -9/Materials Resources | -11 -10 -9 ----------- Run | Yrd Mat Mat Matter Collected 525 | 191 334 . Remotely . | . . . Salvage Created 503 | . 503 . Parts 34 | . 34 . Haulers Intercepted . | . . . Recyclers Shooed 1 | . . 1 Parts Field Recycled . | . . . Retrieved Matter . | . . . Parts Self-Destructed . | . . . Prevented . | . . . Kills | -11 -10 -9 ------- Run | Yrd Mat Mat Combat Hostiles Destroyed 13 | . 13 . Guns 13 | . 13 . Classes Destroyed 4 | . 4 . Builder 1 | . 1 . Watcher 1 | . 1 . Swarmer 3 | . 3 . Grunt 10 | . 10 . Best Kill Streak 5 | . 5 . Combat Bots Only 4 | . 4 . Max Kills in Single Turn 1 | . 1 . Gunslinging . | . . . Exploded . | . . . Melee . | . . . Uniques/NPCs Destroyed . | . . . Combat | -11 -10 -9 -------- Run | Yrd Mat Mat Hostile Shots Fired 97 | . 86 11 Missed 22 | . 21 1 Damage Taken 986 | . 659 327 Core 243 | . 173 70 Absorbed by Shields . | . . . Core Remaining (%) 65 | 100 30 . Volleys Fired 60 | . 52 8 Largest 2 | . 2 2 Hottest 40 | . 40 40 Shots Fired 107 | . 91 16 Gun 107 | . 91 16 Cannon . | . . . Launcher . | . . . Special . | . . . Kinetic 107 | . 91 16 Thermal . | . . . Explosive . | . . . Electromagnetic . | . . . Robot Hit Streak 17 | . 17 12 Robot Miss Streak 3 | . 3 1 Penetration Max . | . . . Secondary Targets 4 | . 4 . Max Gunslinging Chain 1 | . 1 . Shots Hit Robots 81 | . 67 14 Core Hits 31 | . 29 2 Critical Kills . | . . . Critical Parts Destroyed . | . . . Critical Strikes . | . . . Melee Attacks . | . . . Impact . | . . . Slashing . | . . . Piercing . | . . . Sneak Attacks . | . . . Combat Hostiles . | . . . Follow-up Attacks . | . . . Damage Inflicted 839 | . 669 170 Guns 835 | . 665 170 Cannons . | . . . Explosions . | . . . Melee . | . . . Ramming 4 | . 4 . Kinetic 835 | . 665 170 Thermal . | . . . Explosive . | . . . Electromagnetic . | . . . Impact . | . . . Slashing . | . . . Piercing . | . . . Highest Corruption 1 | . 1 . Average Corruption 1 | . 1 . Corruption Purged . | . . . Corruption Blocked . | . . . Overload Shots . | . . . Overflow Damage . | . . . Projectiles . | . . . Explosions . | . . . Melee . | . . . Knockbacks 1 | . 1 . Impact 1 | . 1 . Kinetic . | . . . Secondary . | . . . Self-Inflicted Damage . | . . . Shots . | . . . Rammed . | . . . Targets Rammed 4 | . 3 1 Kicked 4 | . 3 1 Crushed . | . . . Highest Temperature 18 | . 18 . Average Temperature 8 | . 8 . Received Heat Transfer 222 | . 222 . Siege Activations . | . . . Robots Corrupted . | . . . Combat Hostiles . | . . . Parts Fried . | . . . Impact Corruptions . | . . . Robots Melted . | . . . Combat Hostiles . | . . . Parts Melted . | . . . Heat Transferred . | . . . Parts Sabotaged . | . . . Parts Stolen . | . . . Parts Stripped . | . . . Power Chain Reactions . | . . . Alert | -11 -10 -9 ------- Run | Yrd Mat Mat Peak Influence 127 | . 127 . Initial . | . . . Average 43 | . 51 . Maximum Alert Level . | . . . Low Security (%) 100 | 100 100 100 Level 1 . | . . . Level 2 . | . . . Level 3 . | . . . Level 4 . | . . . Level 5 . | . . . High Security . | . . . Max Security . | . . . Squads Dispatched 4 | . 3 1 Investigation 1 | . 1 . Extermination . | . . . Reinforcement 3 | . 2 1 Assault . | . . . Garrison . | . . . Intercept . | . . . Searches Triggered . | . . . Construction Impeded . | . . . Haulers Reinforced . | . . . Active Scanning Responses . | . . . Cargo Convoy Interrupts . | . . . Stealth | -11 -10 -9 --------- Run | Yrd Mat Mat Distress Signals . | . . . Communications Jammed . | . . . Distress Signals . | . . . Times Spotted 29 | . 24 5 Peak Tracking Total 5 | . 4 5 Tactical Retreats 1 | . 1 . Traps | -11 -10 -9 ------- Run | Yrd Mat Mat Traps Triggered 1 | . 1 . Indirectly . | . . . Trap Hack Attempts . | . . . Triggered . | . . . Disarmed . | . . . Reprogrammed . | . . . Reused . | . . . Traps Extracted . | . . . Installed . | . . . Triggered . | . . . Machines | -11 -10 -9 ---------- Run | Yrd Mat Mat Machines Disabled . | . . . Max in Single Turn . | . . . Machines Repaired . | . . . Machines Dismantled . | . . . Machines Sabotaged . | . . . Overloaded Fab Kills . | . . . Hacking | -11 -10 -9 --------- Run | Yrd Mat Mat Machines Accessed 4 | . 3 1 Terminals 4 | . 3 1 Fabricators . | . . . Repair Stations . | . . . Recycling Units . | . . . Scanalyzers . | . . . Garrison Access . | . . . Total Hacks 8 | . 7 1 Successful 5 | . 4 1 Failed 3 | . 3 . Catastrophic 1 | . 1 . Database Lockouts . | . . . Manual . | . . . Terminals 8 | . 7 1 Fabricators . | . . . Repair Stations . | . . . Recycling Units . | . . . Scanalyzers . | . . . Garrison Access . | . . . Terminal Hacks 5 | . 4 1 Terminal Index 1 | . 1 . Alert Level 1 | . 1 . Unreport Threat 1 | . 1 . Hauler Manifests 1 | . . 1 Zone Layout 1 | . 1 . Fabricator Hacks . | . . . Repair Station Hacks . | . . . Recycling Unit Hacks . | . . . Scanalyzer . | . . . Garrison Access Hacks . | . . . Unauthorized Hacks . | . . . Terminals . | . . . Fabricators . | . . . Repair Stations . | . . . Recycling Units . | . . . Scanalyzers . | . . . Garrison Access . | . . . Data Cores Recovered . | . . . Used . | . . . Hacking Detections 2 | . 2 . Full Trace Events 1 | . 1 . Feedback Events . | . . . Feedback Blocked . | . . . Robot Schematics Acquired . | . . . Robots Built . | . . . Authchips . | . . . Time . | . . . Total Robot Build Rating . | . . . Part Schematics Acquired . | . . . Parts Built . | . . . Authchips . | . . . Time . | . . . Total Part Build Rating . | . . . Parts Repaired . | . . . Time . | . . . Parts Recycled . | . . . Recycled Matter . | . . . Retrieved Matter . | . . . Retrieved Components . | . . . Parts Scanalyzed . | . . . Part Schematics Acquired . | . . . Parts Damaged . | . . . Bothacking | -11 -10 -9 ------------ Run | Yrd Mat Mat Used RIF Installer . | . . . Robots Hacked . | . . . Non-combat . | . . . Combat . | . . . Robot Hacks Applied . | . . . Relay Couplers Released . | . . . Fabnet Peak Effective % . | . . . Robots Rewired . | . . . Allies Hacked . | . . . Hacks Repelled . | . . . Allies | -11 -10 -9 -------- Run | Yrd Mat Mat Total Allies . | . . . Largest Group . | . . . Highest-Rated Group . | . . . Highest-Rated Ally . | . . . Total Orders . | . . . Ally Attacks . | . . . Total Damage . | . . . Kills . | . . . Allies Corrupted . | . . . Allies Melted . | . . . Intel | -11 -10 -9 ------- Run | Yrd Mat Mat Robot Analysis Total . | . . . Derelict Logs Recovered . | . . . Drone Launches . | . . . Drone Recoveries . | . . . Exploration | -11 -10 -9 ------------- Run | Yrd Mat Mat Turns Passed 1476 | 110 1252 114 Spaces Moved 964 | 85 816 63 Core 11 | 11 . . Treads . | . . . Legs 953 | 74 816 63 Wheels . | . . . Hover . | . . . Flight . | . . . Fastest Speed 50 | 50 120 120 Average Speed 125 | 110 127 120 Slowest Speed 260 | 120 260 120 Overloaded Moves . | . . . Propulsion Burnouts . | . . . Robots Hopped . | . . . Cave-ins Triggered . | . . . Exploration Rate (%) 33 | 4 88 9 Regions Visited 2 Branch Regions . Pre-discovered Areas . | . . . Known Exits Taken . | . . . Unknown Exits Taken 2 | 1 1 . Scrap Searched . | . . . Spaces Dug . | . . . Terrain Destroyed . | . . . Melee . | . . . Projectile . | . . . AOE . | . . . Terrain Rammed . | . . . Walls Destroyed . | . . . Machines Disabled . | . . . Actions | -11 -10 -9 --------- Run | Yrd Mat Mat Total 1136 | 97 955 84 Wait 61 | 4 50 7 Move 962 | 84 815 63 Hop . | . . . Pick Up 13 | 3 9 1 Fast Attach 11 | 6 3 2 Attach 2 | . 1 1 Detach . | . . . Swap 9 | . 9 . Drop 14 | . 13 1 Fire 60 | . 52 8 Melee . | . . . Ram . | . . . Kick 4 | . 3 1 Crush . | . . . Escape Stasis . | . . . Rewire . | . . . Trap . | . . . Miscellaneous . | . . . Route ------- -11/Scrapyard -10/Materials (discovered 4 exits: *Mat x3 / [*Min]) -9/Materials (discovered 1 exit: [*Min]) History --------- Turn | Location | Event 6 | -11/Scrapyard | Discovered new exit (range 16) 111 | -11/Scrapyard | Entered Materials 120 | -10/Materials | Discovered new exit (range 16) 171 | -10/Materials | Discovered new exit (range 16) 304 | -10/Materials | Build established: Mutant 429 | -10/Materials | Core integrity fell below 50% 605 | -10/Materials | Discovered new exit (range 4) 1197 | -10/Materials | Discovered new exit (range 4) 1363 | -10/Materials | Entered another Materials area 1363 | -9/Materials | Evolved 2 slots: Propulsion x1, Utility x1 1427 | -9/Materials | Discovered new exit (range 16) 1477 | -9/Materials | Self-destructed Last Messages --------------- 2x Lgt. Cannon 4x Autogun A-02 Transporter 4x Spread Laser 2x Wheel 01415_ R-06 Scavenger collects Weapon Shielding. 01427_ EXIT=FOUND 01431_ O-16 Technician: "IFF HANDSHAKE FAILED. SECURING TERMINAL." 01434_ ALERT: Hostiles spotted, dispatching reinforcements to Terminal M011. 01451_ Hrd. Medium Armor Plating severed. 01458_ Kicked R-06 Scavenger out of the way. 01461_ Aluminum Leg severed. 01465_ R-06 Scavenger collects Hrd. Medium Armor Plating. 01468_ R-06 Scavenger collects Aluminum Leg. 01469_ Ion Engine destroyed. 01469_ Com. Matter Pod destroyed. 01472_ R-06 Scavenger collects Aluminum Leg. Map ----- +----------------------------------------------------+ | ?????????????????????????????????????????????????? | | ?????????????????????????????????????????????????? | | ?????????????????????????????????????????????????? | | ?????????????????????????????????????????????????? | | ?????????????????????????????????????????????????? | | ?????????????????????????????????????????????????? | | ?????????????????????????????????????????????????? | | ?????????????????????????????????????????????????? | | ?????????????????????????????????????????????????? | | ?????????????????????????????????????????????????? | | ???????????????#?????????????????????????????????? | | ???????????????# ???????????????????########?????? | | ??????????"| ??# ??????????????????#! !!!!#?????? | | ????????? "## ??????????????????#! !!!#?????? | | ????????? ?????????????????# ! #?????? | | ???????? < ################## #####?? | | ???????? #?? | | ???????????????# ######### #?? | | ???????????????# #???????# #?? | | ?????????####### #???????####+###########?? | | ???????? m ######### #???????? | | ?????????####### # == ## "T" #???????? | | ???????????????###### rg# = ## #???????? | | ????????????????????#g g# ## #???????? | | ????????????????????+ sl ## #???????? | | ??????????????????? # #@ ## """ #???????? | | ??????????????????? # # ## """ #???????? | | ??????????????????"?# ######### """ #???????? | | ?????????????????""?# #???????# #???????? | | ????????????????????# ^ #???????##########???????? | | ????????????????????# #????????????????????????? | | ????????????????????# #????????????????????????? | | ????????????????????# #????????????????????????? | | ????????????????????# ?????????????????????????? | | ????????????????????# ?????????????????????????? | | ????????????????????# ?????????????????????????? | | ????????????????????# ?????????????????????????? | | ????????????????????# ?????????????????????????? | | ????????????????????# ?????????????????????????? | | ????????????????????? ?????????????????????????? | | ?????????????????????????????????????????????????? | | ?????????????????????????????????????????????????? | | ?????????????????????????????????????????????????? | | ?????????????????????????????????????????????????? | | ?????????????????????????????????????????????????? | | ?????????????????????????????????????????????????? | | ?????????????????????????????????????????????????? | | ?????????????????????????????????????????????????? | | ?????????????????????????????????????????????????? | | ?????????????????????????????????????????????????? | +----------------------------------------------------+ Best States ------------- Heat Dissipation 28 Energy Generation 10 Energy Capacity 250 Matter Stores 300 Matter Capacity 450 Sight Range 16 Terrain Scan Density 10 Armor Coverage 225 Weapon Shielding 33 Evasion (%) 55 Item Schematics ----------------- None Robot Schematics ------------------ None Fabricated ------------ Nothing Alien Tech Used ----------------- None Achievements -------------- Everything Is Under Control Challenges ------------ None Game ------ Seed CorruptionGunMeganuke Manual? 0 Play Time 00:12:55 Cumulative 7.6 hours Start 2024.04.15 @ 21:12:05 End 2024.04.15 @ 21:24:44 Sessions 1 Manual Loads 0 Difficulty Rogue Special Mode None Game No. 22 Rogue 22 Adventurer 0 Explorer 0 Win Type - Total 0 Types 0/0/0/0/0/0/0/0/0 Lore% 7 Gallery% 10 Achievement% 11 Wizard Run 0 Options --------- Layout 1 ASCII 0 Keyboard 1 Movement Arrows Keybinds 0 Fullscreen 1 Font 32/Tamsyn Map View 50x40 Zoom Use 0% Tactical HUD 1 Map Filters NONE Filters NONE Steam 0 RUN: bfcb1f6e-d841-4029-babb-39138cf45fcb